bitfinex-derivatives/quotes_BTCF0:USTF0_20250506
["timestamp","ask_amount","ask_price","bid_price","bid_amount"]
[1746528143954,0.2125071,94138.0,94132.0,0.3608]
[1746528144245,0.3305071,94138.0,94133.0,0.0309]
[1746528144437,0.3305071,94138.0,94137.0,2.05622799]
[1746528144836,0.3625071,94138.0,94137.0,2.05622799]
[1746528145049,0.3625071,94138.0,94137.0,2.26873739]
[1746528145251,0.2763071,94138.0,94137.0,2.26873739]
[1746528146042,0.2763071,94138.0,94137.0,2.30163739]
[1746528148053,0.2443071,94138.0,94137.0,2.08912799]
[1746528148246,0.2764071,94138.0,94137.0,0.5]
[1746528149247,0.3944071,94138.0,94137.0,0.5]
[1746528164663,0.4604471,94138.0,94137.0,0.5]
[1746528166263,0.4604471,94138.0,94137.0,0.4716346]
[1746528167556,0.5666751,94138.0,94137.0,0.4716346]
[1746528169059,0.4604471,94138.0,94137.0,0.4716346]
[1746528175662,0.4602871,94138.0,94137.0,0.4716346]
[1746528176864,0.8210871,94138.0,94137.0,0.4716346]
[1746528178367,0.82827357,94138.0,94137.0,0.4716346]
[1746528187979,0.6913071,94138.0,94137.0,0.4716346]
[1746528188274,0.21634847,94139.0,94138.0,0.2125071]
[1746528188576,0.0531195,94151.0,94146.0,0.2124851]
[1746528188775,0.2124845,94148.0,94147.0,0.6032859]
[1746528189167,0.2124845,94148.0,94147.0,2.3075019]
[1746528189368,0.2124845,94148.0,94147.0,1.845016]
[1746528189878,0.2124845,94148.0,94147.0,1.875116]
[1746528191277,0.2124845,94148.0,94147.0,1.7689]
[1746528195080,0.0531172,94155.0,94150.0,0.2124742]
[1746528195279,0.2124755,94152.0,94151.0,0.2781769]
[1746528195669,0.2124755,94152.0,94151.0,0.3843889]
[1746528195875,0.2124755,94152.0,94151.0,1.6143889]
[1746528196071,0.2124755,94152.0,94151.0,1.7323889]
[1746528198283,0.2655792,94160.0,94159.0,0.212454]
[1746528198587,0.2655792,94160.0,94151.0,1.519912]
[1746528198588,0.2124642,94158.0,94157.0,0.2124624]
[1746528198789,0.2124642,94158.0,94157.0,0.3094624]
[1746528201291,0.2124642,94158.0,94157.0,0.097]
[1746528201992,0.2124642,94158.0,94157.0,0.0638]
[1746528202295,0.2440642,94158.0,94157.0,0.0638]
[1746528202795,0.2752642,94158.0,94157.0,0.0638]
[1746528203191,0.3932642,94158.0,94157.0,0.0638]
[1746528206685,0.3932642,94158.0,94157.0,0.033]
[1746528208297,0.2752642,94158.0,94157.0,0.033]
[1746528209096,0.3932642,94158.0,94157.0,0.033]
[1746528209297,0.3932642,94158.0,94157.0,0.333]
[1746528209896,0.3304642,94158.0,94157.0,0.333]
[1746528210097,0.3304642,94158.0,94157.0,0.3643]
[1746528211094,0.2124642,94158.0,94157.0,0.3643]
[1746528212389,0.2124642,94158.0,94157.0,0.3]
[1746528212390,0.2445642,94158.0,94157.0,0.3]
[1746528212699,0.2755642,94158.0,94157.0,0.3]
[1746528213202,0.3935642,94158.0,94157.0,0.3]
[1746528223101,0.3614642,94158.0,94157.0,0.3]
[1746528225203,0.3304642,94158.0,94157.0,0.3]
[1746528225703,0.3611642,94158.0,94157.0,0.3]
[1746528226093,0.2431642,94158.0,94157.0,0.3]
[1746528227398,0.2124642,94158.0,94157.0,0.3]
[1746528227606,0.2124642,94158.0,94157.0,0.5124642]
[1746528228297,0.2124642,94158.0,94157.0,0.6186682]
[1746528231202,0.2124642,94158.0,94157.0,0.5124642]
[1746528237508,0.2124642,94158.0,94157.0,0.3]
[1746528238101,0.2427642,94158.0,94157.0,0.3]
[1746528238306,0.2741642,94158.0,94157.0,0.3]
[1746528239115,0.2741642,94158.0,94157.0,0.5124642]
[1746528239611,0.2741642,94158.0,94157.0,0.3]
[1746528240117,0.2741642,94158.0,94157.0,0.3647]
[1746528243619,0.2741642,94158.0,94157.0,0.3323]
[1746528244009,0.2741642,94158.0,94157.0,0.3]
[1746528244212,0.3921642,94158.0,94157.0,0.3]
[1746528259827,0.39984686,94158.0,94157.0,0.3]
[1746528260026,0.60605086,94158.0,94157.0,0.1220652]
[1746528260235,0.65605086,94158.0,94157.0,0.091418]
[1746528262334,0.65605086,94158.0,94157.0,0.0572071]
[1746528262533,0.65605086,94158.0,94157.0,0.0225536]
[1746528262835,0.65605086,94158.0,94157.0,1e-07]
[1746528271745,0.44358666,94158.0,94147.0,0.4556346]
[1746528271942,0.5732845,94148.0,94147.0,0.0966967]
[1746528272138,0.7904045,94148.0,94147.0,1e-07]
[1746528272446,0.9601205,94148.0,94147.0,1e-07]
[1746528275340,0.9924205,94148.0,94147.0,1e-07]
[1746528280148,0.9424205,94148.0,94147.0,1e-07]
[1746528283854,0.8039045,94148.0,94147.0,1e-07]
[1746528284249,0.8039445,94148.0,94147.0,1e-07]
[1746528284855,0.7404445,94148.0,94147.0,1e-07]
[1746528285053,0.6404445,94148.0,94147.0,1e-07]
[1746528285248,0.6904445,94148.0,94147.0,1e-07]
[1746528289166,0.6404445,94148.0,94147.0,1e-07]
[1746528294166,0.6904445,94148.0,94147.0,1e-07]
[1746528294470,0.6904045,94148.0,94147.0,1e-07]
[1746528305075,0.6404045,94148.0,94147.0,1e-07]
[1746528305262,0.2796045,94148.0,94147.0,1e-07]
[1746528309478,0.6404045,94148.0,94147.0,1e-07]
[1746528310173,0.7013045,94148.0,94147.0,1e-07]
[1746528320378,0.7009045,94148.0,94147.0,1e-07]
[1746528321882,0.6704045,94148.0,94140.0,0.0531256]
[1746528322087,0.6704045,94148.0,94085.0,0.21639578]
[1746528322280,0.6704045,94148.0,81704.0,0.00080797]
[1746528322281,0.3608,94082.0,94052.0,0.37769261]
[1746528322482,0.3608,94053.0,94052.0,0.45769261]
[1746528322786,0.3608,94066.0,94052.0,1.27073261]
[1746528322976,0.3608,94066.0,94065.0,1.5]
[1746528323176,0.3608,94066.0,94065.0,1.55]
[1746528323376,0.3109,94066.0,94065.0,1.946308]
[1746528323575,0.3109,94066.0,94065.0,1.906308]
[1746528323576,0.2125698,94066.0,94065.0,1.906308]
[1746528324486,0.2125698,94066.0,94065.0,1.936308]
[1746528324683,0.2125698,94066.0,94065.0,1.906308]
[1746528325179,0.2125698,94066.0,94065.0,1.936308]
[1746528325381,0.2125698,94066.0,94065.0,1.946308]
[1746528325582,0.2125698,94066.0,94065.0,1.906308]
[1746528326487,0.2125698,94066.0,94065.0,1.656308]
[1746528326887,0.2125698,94066.0,94065.0,1.686308]
[1746528327089,0.2125698,94066.0,94065.0,1.656308]
[1746528327790,0.2125698,94066.0,94065.0,1.86898]
[1746528330887,0.0531659,94069.0,94065.0,1.86898]
[1746528330888,0.2658185,94075.0,94074.0,0.2126517]
[1746528331391,0.2658185,94075.0,94074.0,0.31895169]
[1746528331791,0.2658185,94075.0,94074.0,1.81895169]
[1746528332182,0.2658185,94075.0,94074.0,1.5]
[1746528332489,0.3608,94077.0,94047.0,0.00159494]
[1746528332490,0.2126879,94058.0,94047.0,0.00159494]
[1746528332792,0.5734879,94058.0,94057.0,0.17258]
[1746528332986,0.5734879,94058.0,94057.0,0.3852701]
[1746528333288,0.57323486,94058.0,94057.0,1.8129901]
[1746528333482,0.3608,94058.0,94057.0,1.8852701]
[1746528334088,0.5734879,94058.0,94057.0,1.8852701]
[1746528334591,0.2126879,94058.0,94057.0,1.8852701]
[1746528335095,0.212684,94060.0,94059.0,0.2126833]
[1746528335895,0.212684,94060.0,94059.0,1.7126833]
[1746528336795,0.2658418,94065.0,94064.0,0.2126743]
[1746528336993,0.3608,94069.0,94066.0,0.053167]
[1746528337194,0.6266336,94069.0,94068.0,0.2126653]
[1746528337490,0.2127173,94045.0,94044.0,0.4501]
[1746528337683,0.5735173,94045.0,94044.0,0.4501]
[1746528337887,0.5735173,94045.0,94044.0,0.01606718]
[1746528338292,0.5735173,94045.0,94044.0,0.22878668]
[1746528338509,0.0301,94056.0,94046.0,0.0531761]
[1746528338510,0.0531743,94054.0,94046.0,0.0531761]
[1746528338793,0.4139671,94067.0,94052.0,0.2127014]
[1746528338794,0.6266855,94053.0,94052.0,0.2127014]
[1746528338987,0.6266855,94053.0,94052.0,0.2827014]
[1746528340593,0.3608,94053.0,94052.0,0.07228]
[1746528340801,0.5734992,94053.0,94052.0,0.07228]
[1746528341191,0.5734992,94053.0,94052.0,1.57228]
[1746528341998,0.5734992,94053.0,94052.0,1.5]
[1746528342198,0.88538459,94053.0,94052.0,1.57228]
[1746528344698,0.88538459,94053.0,94052.0,1.58032929]
[1746528344891,0.88538459,94053.0,94052.0,1.50804929]
[1746528345092,0.88538459,94053.0,94052.0,1.64522929]
[1746528346199,0.93585587,94053.0,94052.0,1.64522929]
[1746528346401,0.93585587,94053.0,94052.0,1.85793069]
[1746528347299,0.93585587,94053.0,94052.0,1.64522929]
[1746528347699,0.93585587,94053.0,94052.0,1.85793069]
[1746528348096,0.93585587,94053.0,94052.0,1.57294929]
[1746528348302,0.93585587,94053.0,94052.0,1.64522929]
[1746528348803,0.5734992,94053.0,94052.0,1.85793069]
[1746528349791,0.5734992,94053.0,94052.0,1.64522929]
[1746528349990,0.5734992,94053.0,94052.0,1.5649]
[1746528350195,0.5734992,94053.0,94052.0,1.63718]
[1746528350798,0.5734992,94053.0,94052.0,1.60398]
[1746528351396,0.2127897,94013.0,94003.0,0.3608]
[1746528351595,0.3608,94014.0,94004.0,0.0532022]
[1746528351805,0.3608,94014.0,94013.0,0.2850697]
[1746528352005,0.3608,94014.0,94013.0,0.42143769]
[1746528352505,0.3608,94014.0,94013.0,1.92143769]
[1746528352701,0.3608,94014.0,94013.0,2.01573769]
[1746528353298,0.3608,94025.0,94024.0,0.2127648]
[1746528353509,0.3608,94025.0,94024.0,0.2327648]
[1746528353699,0.3608,94025.0,94024.0,0.3391208]
[1746528353999,0.3608,94025.0,94024.0,1.8391208]
[1746528354404,0.3608,94025.0,94024.0,1.9028208]
[1746528354705,0.3608,94025.0,94024.0,1.9772608]
[1746528355106,0.3608,94034.0,94029.0,0.0531878]
[1746528355293,0.3608,94034.0,94033.0,0.2127444]
[1746528356106,0.3608,94034.0,94033.0,1.7127444]
[1746528359099,0.3608,94034.0,94033.0,1.8190884]
[1746528360810,0.3608,94034.0,94033.0,1.8590884]
[1746528362002,0.3608,94034.0,94033.0,1.7871844]
[1746528365311,0.3608,94034.0,94033.0,1.8271844]
[1746528366418,0.3608,94034.0,94033.0,1.9335284]
[1746528367120,0.3608,94053.0,94052.0,0.2127014]
[1746528367419,0.3608,94053.0,94052.0,0.2871414]
[1746528367916,0.3608,94053.0,94052.0,1.7871414]
[1746528368108,0.3608,94053.0,94052.0,1.8488414]
[1746528368708,0.3608,94053.0,94052.0,1.8688414]
[1746528368909,0.3608,94053.0,94052.0,1.8488414]
[1746528370718,0.3608,94053.0,94052.0,1.8175414]
[1746528372713,0.4235,94053.0,94052.0,1.8175414]
[1746528374411,0.4235,94053.0,94052.0,1.8775414]
[1746528374621,0.001,94056.0,94055.0,0.2126947]
[1746528375122,0.001,94056.0,94055.0,0.3590147]
[1746528375314,0.001,94056.0,94055.0,1.8590147]
[1746528381020,0.001,94056.0,94055.0,1.7526947]
[1746528383023,0.001,94056.0,94055.0,1.8271347]
[1746528384322,0.001,94056.0,94032.0,1.52808]
[1746528384522,0.3608,94045.0,94044.0,0.2431195]
[1746528384917,0.3608,94045.0,94044.0,1.8151195]
[1746528385522,0.3608,94045.0,94044.0,1.8351195]
[1746528388729,0.3608,94053.0,94049.0,0.0531767]
[1746528388932,0.3608,94053.0,94052.0,0.2127014]
[1746528391329,0.3924,94053.0,94052.0,0.2127014]
[1746528391729,0.3924,94053.0,94050.0,0.2442014]
[1746528392023,0.2127014,94052.0,94051.0,0.072]
[1746528392229,0.2127014,94052.0,94051.0,0.2847037]
[1746528392420,0.2443014,94052.0,94051.0,0.2847037]
[1746528393025,0.0316,94052.0,94051.0,0.2847037]
[1746528393531,0.2443014,94052.0,94051.0,0.2847037]
[1746528394324,0.0316,94052.0,94051.0,0.2847037]
[1746528394733,0.0316,94052.0,94051.0,0.2127037]
[1746528395033,0.0316,94052.0,94051.0,0.2847037]
[1746528395631,0.053179,94046.0,94016.0,1.16712]
[1746528395840,0.5735648,94024.0,94023.0,2e-08]
[1746528396330,0.6799208,94024.0,94023.0,2e-08]
[1746528396526,0.68788885,94024.0,94023.0,2e-08]
[1746528396730,0.71828885,94024.0,94023.0,2e-08]
[1746528397033,0.75138885,94024.0,94023.0,2e-08]
[1746528398239,0.64503285,94024.0,94023.0,2e-08]
[1746528399034,0.3608,94024.0,94023.0,2e-08]
[1746528399235,0.68802097,94024.0,94023.0,2e-08]
[1746528399933,0.6929415,94024.0,94023.0,2e-08]
[1746528402039,0.5865855,94024.0,94023.0,2e-08]
[1746528402238,0.6420855,94024.0,94023.0,2e-08]
[1746528404639,0.6420855,94024.0,94013.0,0.0311]
[1746528404640,0.4293207,94024.0,94013.0,0.0311]
[1746528404841,0.2127874,94014.0,94013.0,0.0311]
[1746528405446,0.2127874,94014.0,94013.0,0.2438897]
[1746528405748,0.5735858,94016.0,94015.0,0.2127851]
[1746528406246,0.2127851,94015.0,94014.0,0.0311]
[1746528406446,0.2127851,94015.0,94014.0,1.7438874]
[1746528406945,0.2127851,94015.0,94014.0,1.5311]
[1746528409934,0.36572053,94024.0,94017.0,0.2127761]
[1746528410138,0.00492053,94024.0,94023.0,0.212767]
[1746528410334,0.2127648,94024.0,94023.0,0.212767]
[1746528411144,0.2127851,94015.0,94014.0,1.5]
[1746528415051,0.2127851,94015.0,94014.0,1.5706]
[1746528415248,0.3608,94016.0,94012.0,3e-08]
[1746528415249,0.4139962,94016.0,94012.0,3e-08]
[1746528415450,0.2127897,94013.0,94012.0,3e-08]
[1746528415951,0.2369897,94013.0,94012.0,3e-08]
[1746528417851,0.2369897,94013.0,94012.0,1.50000003]
[1746528418652,0.2127897,94013.0,94012.0,1.50000003]
[1746528420248,0.2127897,94013.0,94012.0,3e-08]
[1746528420644,0.2369897,94013.0,94012.0,3e-08]
[1746528421949,0.2127897,94013.0,94012.0,3e-08]
[1746528426654,0.2127987,94009.0,94008.0,3e-08]
[1746528426858,0.2127987,94009.0,93940.0,0.6876]
[1746528426859,0.0532011,94007.0,93960.0,0.3608]
[1746528427045,0.9344282,93996.0,93995.0,8e-08]
[1746528427954,0.99424865,93996.0,93995.0,8e-08]
[1746528428257,0.99424865,93996.0,93986.0,0.0532126]
[1746528428258,0.2128689,93978.0,93977.0,0.07223613]
[1746528428462,0.053215,93982.0,93980.0,0.2128621]
[1746528428676,0.2128639,93981.0,93980.0,0.2128621]
[1746528429471,0.2128639,93981.0,93980.0,0.2448621]
[1746528429678,0.3608,93986.0,93980.0,0.032]
[1746528429880,0.2128549,93985.0,93984.0,0.2128531]
[1746528430272,0.2660822,93983.0,93982.0,0.2660675]
[1746528431078,0.2128667,93983.0,93982.0,0.3724715]
[1746528431584,0.2128667,93983.0,93982.0,0.31245162]
[1746528432983,0.44180122,93983.0,93982.0,0.106404]
[1746528433174,0.44180122,93983.0,93982.0,0.6192639]
[1746528433378,0.44180122,93983.0,93982.0,0.6292639]
[1746528433580,0.44180122,93983.0,93982.0,0.6192639]
[1746528433779,0.44180122,93983.0,93982.0,2.1192639]
[1746528434184,0.44180122,93983.0,93982.0,1.8692639]
[1746528434487,0.44180122,93983.0,93982.0,0.136404]
[1746528434686,0.44180122,93983.0,93982.0,0.3192639]
[1746528435388,0.44180122,93983.0,93982.0,1.8192639]
[1746528436189,0.2128405,93991.0,93990.0,0.2128417]
[1746528436487,0.2128405,93991.0,93990.0,0.6442817]
[1746528437589,0.2660456,93993.0,93992.0,0.2128372]
[1746528437786,0.2128322,93995.0,93994.0,0.2660358]
[1746528437990,0.2128322,93995.0,93994.0,0.2128282]
[1746528438693,0.2128322,93995.0,93994.0,1.7128282]
[1746528441890,0.2128322,93995.0,93994.0,1.7453282]
[1746528442091,0.2112022,93995.0,93994.0,1.7453282]
[1746528443298,0.2112022,93995.0,93994.0,1.7453327]
[1746528445689,0.2112022,93995.0,93994.0,1.5325]
[1746528445899,0.2112022,93995.0,93994.0,1.7453327]
[1746528447596,0.2112022,93995.0,93994.0,1.7772327]
[1746528448093,0.2112022,93995.0,93994.0,1.8098327]
[1746528449099,0.2128186,94001.0,94000.0,0.2128191]
[1746528449488,0.3192226,94001.0,94000.0,0.2782191]
[1746528450697,0.3500226,94001.0,94000.0,0.2782191]
[1746528451002,0.3500226,94001.0,94000.0,0.0654]
[1746528451296,0.3500226,94001.0,94000.0,0.0322]
[1746528451496,0.3830226,94001.0,94000.0,0.0322]
[1746528452090,0.3830226,94001.0,94000.0,0.2450191]
[1746528452285,0.3830226,94001.0,94000.0,0.0654]
[1746528452488,0.2128689,93978.0,93969.0,0.57704877]
[1746528452686,0.2128689,93978.0,93975.0,0.23620695]
[1746528452995,0.2128689,93978.0,93977.0,1.71446733]
[1746528453300,0.3192729,93978.0,93977.0,1.50159613]
[1746528453496,0.3192729,93978.0,93975.0,0.23620695]
[1746528453687,0.2128735,93976.0,93975.0,0.21534338]
[1746528453888,0.2128735,93976.0,93975.0,1.64158338]
[1746528454094,0.3520775,93976.0,93975.0,1.67388338]
[1746528454497,0.3520775,93976.0,93975.0,1.5]
[1746528458101,0.3520775,93976.0,93975.0,1.5324]
[1746528458291,0.3520775,93976.0,93975.0,1.7452757]
[1746528458490,0.3520775,93976.0,93975.0,1.7782757]
[1746528458692,0.2128757,93975.0,93974.0,7e-08]
[1746528459002,0.2128961,93966.0,93965.0,0.00456422]
[1746528459200,0.6801001,93966.0,93965.0,0.00456422]
[1746528459793,0.7423001,93966.0,93965.0,0.00456422]
[1746528460193,0.7423001,93966.0,93965.0,1.50456422]
[1746528465296,1.1511001,93966.0,93965.0,1.50456422]
[1746528466900,0.7116001,93966.0,93965.0,1.54456422]
[1746528467203,0.3508001,93966.0,93965.0,1.50456422]
[1746528467803,0.3816001,93966.0,93965.0,1.50456422]
[1746528470509,0.106404,93966.0,93965.0,1.71746262]
[1746528471610,0.3608,93977.0,93966.0,0.0532239]
[1746528471811,0.136604,93976.0,93975.0,0.2128746]
[1746528472014,0.3494775,93976.0,93975.0,0.2128746]
[1746528472205,0.136604,93976.0,93975.0,0.2128746]
[1746528472406,0.3192775,93976.0,93975.0,0.2128746]
[1746528474811,0.106404,93976.0,93975.0,0.2128746]
[1746528475613,0.3608,93977.0,93976.0,0.2128735]
[1746528476210,0.3608,93977.0,93976.0,1.7128735]
[1746528477913,0.5736712,93977.0,93976.0,1.7128735]
[1746528479311,0.57350125,93977.0,93976.0,1.7128735]
[1746528480915,0.67990525,93977.0,93976.0,1.7128735]
[1746528482611,0.67990525,93977.0,93976.0,1.5]
[1746528484308,0.67990525,93977.0,93942.0,0.53396752]
[1746528484309,0.2128938,93967.0,93965.0,0.00456422]
[1746528484803,0.3192978,93967.0,93966.0,1.5305]
[1746528487114,0.3192978,93967.0,93966.0,1.5634]
[1746528487414,0.3511978,93967.0,93966.0,1.5]
[1746528487920,0.3511978,93967.0,93966.0,1.5329]
[1746528488312,0.3511978,93967.0,93966.0,1.5657]
[1746528492018,0.3511978,93967.0,93966.0,1.5967]
[1746528492221,0.7599978,93967.0,93966.0,1.5967]
[1746528492919,0.7599978,93967.0,93966.0,1.5639]
[1746528495820,0.7599978,93967.0,93966.0,1.5]
[1746528496016,0.2128961,93966.0,93965.0,0.00456422]
[1746528496222,0.7602001,93966.0,93965.0,0.00456422]
[1746528496426,0.7934001,93966.0,93965.0,0.00456422]
[1746528496822,0.3846001,93966.0,93965.0,0.00456422]
[1746528503230,0.3514001,93966.0,93965.0,0.21746262]
[1746528504032,0.3514001,93966.0,93965.0,0.00456422]
[1746528505131,0.3193001,93966.0,93965.0,0.00456422]
[1746528505328,0.3193001,93966.0,93965.0,0.21746262]
[1746528505520,0.3193001,93966.0,93965.0,0.00456422]
[1746528506129,0.3193001,93966.0,93965.0,0.28316262]
[1746528506437,0.3193001,93966.0,93965.0,0.07026422]
[1746528508436,0.3193001,93966.0,93965.0,0.28316262]
[1746528508637,0.3193001,93966.0,93965.0,0.07026422]
[1746528512139,0.3193001,93966.0,93965.0,1.57026422]
[1746528515237,0.3193001,93966.0,93965.0,1.78316262]
[1746528516440,0.3193001,93966.0,93965.0,1.57026422]
[1746528518034,0.3193001,93966.0,93965.0,0.07026422]
[1746528518543,0.3193001,93966.0,93965.0,1.57026422]
[1746528518737,0.3193001,93966.0,93965.0,1.78316262]
[1746528518940,0.3193001,93966.0,93965.0,1.57026422]
[1746528527339,0.3193001,93966.0,93965.0,1.78316262]
[1746528527848,0.3193001,93966.0,93965.0,1.57026422]
[1746528528435,0.3193001,93966.0,93965.0,0.07026422]
[1746528528947,0.3193001,93966.0,93965.0,1.57026422]
[1746528532137,0.3193001,93966.0,93965.0,0.00456422]
[1746528532338,0.4193001,93966.0,93965.0,0.00456422]
[1746528532640,0.3193001,93966.0,93965.0,0.00456422]
[1746528532838,0.3512001,93966.0,93965.0,0.00456422]
[1746528534544,0.3512001,93966.0,93900.0,0.105]
[1746528534545,0.7907,93966.0,93934.0,0.17707297]
[1746528534744,0.2129664,93935.0,93934.0,0.17707297]
[1746528535042,0.0532383,93941.0,93936.0,0.2129627]
[1746528535353,0.2129623,93939.0,93938.0,0.2129573]
[1746528535745,0.3608,93947.0,93934.0,2.03787297]
[1746528535746,0.2129514,93942.0,93941.0,0.2129505]
[1746528536148,0.09726455,93942.0,93941.0,0.2129505]
[1746528536447,0.3608,93947.0,93941.0,0.2129505]
[1746528536448,0.3608,93947.0,93946.0,0.2129414]
[1746528537361,0.3608,93947.0,93946.0,0.2751414]
[1746528538054,0.5737392,93947.0,93946.0,0.2751414]
[1746528538354,0.5737392,93947.0,93946.0,0.0622]
[1746528538556,0.5737392,93947.0,93946.0,1.5622]
[1746528538740,0.5737392,93947.0,93946.0,1.7751414]
[1746528539143,0.3608,93947.0,93946.0,1.7751414]
[1746528539754,0.5737392,93947.0,93946.0,1.7751414]
[1746528545143,0.3608,93947.0,93946.0,1.7751414]
[1746528545348,0.5737392,93947.0,93946.0,1.7751414]
[1746528549755,0.3608,93947.0,93946.0,1.7751414]
[1746528550151,0.13557703,93952.0,93951.0,0.2129301]
[1746528550351,0.13557703,93952.0,93951.0,0.2629301]
[1746528550556,0.13557703,93952.0,93951.0,0.3193661]
[1746528550956,0.13557703,93952.0,93951.0,0.3842661]
[1746528552058,0.13557703,93952.0,93951.0,0.2778301]
[1746528553355,0.10844229,93955.0,93954.0,0.2129233]
[1746528553963,0.10844229,93955.0,93954.0,0.2770233]
[1746528559365,0.10844229,93955.0,93954.0,0.3834593]
[1746528559566,0.10844229,93955.0,93954.0,0.4134593]
[1746528560368,0.10844229,93955.0,93954.0,1.9134593]
[1746528561057,0.1795748,93959.0,93957.0,0.0532286]
[1746528561355,0.1795748,93959.0,93958.0,0.3805422]
[1746528562068,0.1795748,93959.0,93958.0,1.8805422]
[1746528564255,0.0015,93960.0,93959.0,0.212912]
[1746528564459,0.0015,93960.0,93959.0,0.31934]
[1746528564659,0.0015,93960.0,93959.0,0.38494]
[1746528564861,0.0015,93960.0,93959.0,1.88494]
[1746528565061,0.0015,93960.0,93959.0,1.98442]
[1746528567064,0.1083815,93963.0,93962.0,0.2129052]
[1746528567666,0.1083815,93963.0,93962.0,1.7129052]
[1746528567967,0.031,93965.0,93964.0,0.2129006]
[1746528568570,0.2438984,93965.0,93964.0,1.7775006]
[1746528568959,0.2740984,93965.0,93964.0,1.7775006]
[1746528569562,0.031,93965.0,93964.0,1.7775006]
[1746528569958,0.2438984,93965.0,93964.0,1.7775006]
[1746528571462,0.2760984,93965.0,93964.0,1.7775006]
[1746528573862,0.031,93965.0,93964.0,1.7775006]
[1746528575680,0.16657703,93965.0,93964.0,1.7775006]
[1746528580579,0.16657703,93965.0,93964.0,1.8769806]
[1746528580782,0.19697703,93965.0,93964.0,1.8769806]
[1746528581882,0.0614,93965.0,93964.0,1.8769806]
[1746528583776,0.2742984,93965.0,93964.0,1.8123806]
[1746528584286,0.37156295,93965.0,93964.0,1.7129006]
[1746528587181,0.15866455,93965.0,93964.0,1.7129006]
[1746528587376,0.37156295,93965.0,93964.0,1.7437006]
[1746528587585,0.15866455,93965.0,93964.0,1.7437006]
[1746528588982,0.12826455,93965.0,93964.0,1.7437006]
[1746528594482,0.09726455,93965.0,93964.0,1.7437006]
[1746528595695,0.3618,93966.0,93965.0,0.2128984]
[1746528595887,0.3618,93966.0,93965.0,0.2738984]
[1746528596494,0.3618,93966.0,93965.0,1.7738984]
[1746528600086,0.45906455,93966.0,93965.0,1.7738984]
[1746528600293,0.67196065,93966.0,93965.0,1.561]
[1746528600493,0.67196065,93966.0,93965.0,1.7128984]
[1746528600794,0.67196065,93966.0,93965.0,1.5]
[1746528600981,0.67196065,93966.0,93965.0,1.7128984]
[1746528601186,0.73266065,93966.0,93965.0,1.7128984]
[1746528602795,0.77665492,93966.0,93965.0,1.7128984]
[1746528603699,0.56375882,93966.0,93965.0,1.7128984]
[1746528604393,0.53365882,93966.0,93965.0,1.7459984]
[1746528604594,0.53365882,93966.0,93965.0,1.7762984]
[1746528611802,0.53365882,93966.0,93965.0,1.8077984]
[1746528612602,0.48966455,93966.0,93965.0,1.8077984]
[1746528618994,0.53365951,93966.0,93965.0,1.8077984]
[1746528622711,0.50305951,93966.0,93965.0,1.8077984]
[1746528623013,0.00159756,93980.0,93979.0,0.2128667]
[1746528623605,0.3608,93984.0,93983.0,0.2128576]
[1746528623806,0.3608,93984.0,93983.0,0.3037776]
[1746528624007,0.45806455,93984.0,93983.0,0.3037776]
[1746528624307,0.45806455,93984.0,93967.0,0.09092]
[1746528624308,0.81886455,93984.0,93967.0,0.09092]
[1746528624503,0.3608,93973.0,93972.0,0.2128825]
[1746528624702,0.2128825,93972.0,93971.0,0.0623]
[1746528624906,0.34304705,93972.0,93971.0,1.7751848]
[1746528625113,0.34304705,93972.0,93971.0,1.78330583]
[1746528625411,0.34304705,93972.0,93971.0,1.57042103]
[1746528625705,0.37514705,93972.0,93971.0,1.57042103]
[1746528625913,0.37514705,93972.0,93971.0,1.78330583]
[1746528626211,0.16226455,93972.0,93971.0,1.78330583]
[1746528627118,0.37514705,93972.0,93971.0,1.78330583]
[1746528627307,0.16226455,93972.0,93971.0,1.78330583]
[1746528627908,0.13016455,93972.0,93971.0,1.78330583]
[1746528628812,0.09726455,93972.0,93971.0,1.78330583]
[1746528630816,0.13036455,93972.0,93971.0,1.78330583]
[1746528631313,0.13036455,93972.0,93964.0,0.3608]
[1746528631514,0.13036455,93972.0,93940.0,0.1625497]
[1746528631515,0.3608,93968.0,93940.0,0.02730194]
[1746528631712,0.5737528,93941.0,93940.0,0.02730194]
[1746528632112,0.6802048,93941.0,93940.0,0.02730194]
[1746528632620,0.7452048,93941.0,93940.0,1.52730194]
[1746528633216,0.7452048,93941.0,93940.0,0.02730194]
[1746528636519,0.7452048,93941.0,93938.0,0.2129593]
[1746528636520,0.2129573,93939.0,93938.0,0.2129593]
[1746528636921,0.3194093,93939.0,93938.0,0.2129593]
[1746528639021,0.2129641,93936.0,93935.0,0.00106456]
[1746528639917,0.2129641,93936.0,93935.0,0.21403096]
[1746528640710,0.0636,93938.0,93937.0,0.2129618]
[1746528640915,0.0329,93938.0,93937.0,0.2129618]
[1746528641120,0.3608,93941.0,93940.0,0.212955]
[1746528641726,0.3608,93941.0,93940.0,1.712955]
[1746528641921,0.3608,93941.0,93940.0,1.745655]
[1746528642520,0.0325,93944.0,93943.0,0.2129482]
[1746528643226,0.0325,93944.0,93943.0,1.7129482]
[1746528645812,0.0325,93944.0,93943.0,1.5]
[1746528646019,0.245446,93944.0,93943.0,1.5]
[1746528646218,0.0325,93944.0,93943.0,1.5]
[1746528646419,0.0325,93944.0,93939.0,0.0319]
[1746528646627,0.3608,93942.0,93941.0,0.2129528]
[1746528646829,0.3608,93942.0,93941.0,0.2432528]
[1746528647026,0.3922,93942.0,93941.0,0.2432528]
[1746528648725,0.3922,93942.0,93941.0,0.2765528]
[1746528651024,0.3608,93942.0,93941.0,0.2765528]
[1746528651331,0.3608,93950.0,93949.0,0.2129346]
[1746528652219,0.3608,93950.0,93949.0,0.2749346]
[1746528653133,0.44175834,93950.0,93949.0,0.2749346]
[1746528656730,0.3608,93950.0,93949.0,0.2749346]
[1746528658640,0.5737324,93950.0,93949.0,0.2749346]
[1746528658840,0.5737324,93950.0,93949.0,0.2432346]
[1746528658841,0.3608,93950.0,93949.0,0.2432346]
[1746528659738,0.5737324,93950.0,93949.0,0.2432346]
[1746528660941,0.5737324,93950.0,93949.0,0.0303]
[1746528661146,0.5737324,93950.0,93949.0,0.2432346]
[1746528662944,0.3608,93950.0,93949.0,0.2432346]
[1746528663344,0.5737324,93950.0,93949.0,0.2432346]
[1746528663547,0.6069324,93950.0,93949.0,0.2432346]
[1746528663744,0.6069324,93950.0,93949.0,0.0303]
[1746528664146,0.6069324,93950.0,93949.0,0.2432346]
[1746528664844,0.6069324,93950.0,93949.0,0.4212346]
[1746528665050,0.6069324,93950.0,93949.0,0.7772346]
[1746528666553,0.6069324,93950.0,93949.0,0.5643]